fUSD/lending_fUSD_20240423
["ID","MTS","AMOUNT","RATE_DAILY","PERIOD"]
[323298485,1713880247832,-500.0,0.00012016,2]
[323298487,1713880247841,-500.0,0.00012016,2]
[323298489,1713880247852,-500.0,0.00012016,2]
[323298491,1713880247861,-500.0,0.00012016,2]
[323298493,1713880247871,-1631.42,0.00012016,2]
[323298495,1713880247881,-632.06,0.00012016,2]
[323298497,1713880247891,-500.0,0.00012016,2]
[323298499,1713880247900,-569.09,0.00012016,2]
[323298501,1713880247909,-500.0,0.00012016,2]
[323298503,1713880247918,-500.0,0.00012016,2]
[323298506,1713880247928,-500.0,0.00012016,2]
[323298508,1713880247938,-500.0,0.00012016,2]
[323298510,1713880247947,-500.0,0.00012016,2]
[323298512,1713880247956,-1484.66,0.00012016,2]
[323298514,1713880247966,-500.0,0.00012016,2]
[323298516,1713880247976,-1174.83,0.00012016,2]
[323298518,1713880247985,-500.0,0.00012016,2]
[323298520,1713880247994,-500.0,0.00012016,2]
[323298522,1713880248004,-1443.4,0.00012016,2]
[323298524,1713880248014,-506.04,0.00012016,2]
[323298526,1713880248023,-500.0,0.00012016,2]
[323298528,1713880248032,-500.0,0.00012016,2]
[323298529,1713880248041,-786.06,0.00012016,2]
[323298532,1713880248050,-593.19,0.00012016,2]
[323298534,1713880248060,-500.0,0.00012016,2]
[323298536,1713880248072,-500.0,0.00012016,2]
[323298538,1713880248081,-500.0,0.00012016,2]
[323298540,1713880248090,-749.55,0.00012016,2]
[323298542,1713880248099,-539.45,0.00012017,2]
[323298544,1713880248107,-500.0,0.00012017,2]
[323298545,1713880248116,-500.0,0.00012017,2]
[323298547,1713880248126,-629.47093454,0.00012017,2]
[323298550,1713880248136,-500.0,0.00012017,2]
[323298551,1713880248145,-500.0,0.00012017,2]
[323298554,1713880248155,-500.0,0.00012017,2]
[323298556,1713880248165,-500.0,0.00012017,2]
[323298558,1713880248174,-500.0,0.00012017,2]
[323298560,1713880248183,-500.0,0.00012017,2]
[323298561,1713880248193,-500.0,0.00012017,2]
[323298563,1713880248202,-660.4,0.00012017,2]
[323298565,1713880248212,-500.0,0.00012017,2]
[323298567,1713880248221,-500.0,0.00012017,2]
[323298569,1713880248230,-500.0,0.00012017,2]
[323298571,1713880248239,-500.0,0.00012017,2]
[323298574,1713880248250,-500.0,0.00012017,2]
[323298576,1713880248260,-500.0,0.00012017,2]
[323298578,1713880248269,-500.0,0.00012017,2]
[323298580,1713880248278,-500.0,0.00012017,2]
[323298582,1713880248287,-500.0,0.00012017,2]
[323298605,1713880248506,-500.0,0.00012017,2]
[323298607,1713880248516,-288.01058239,0.00012017,2]
[323298609,1713880248525,-500.0,0.00012017,2]
[323298611,1713880248533,-500.0,0.00012017,2]
[323298613,1713880248543,-1228.86,0.00012017,2]
[323298615,1713880248552,-500.0,0.00012017,2]
[323298617,1713880248561,-500.0,0.00012017,2]
[323298619,1713880248576,-500.0,0.00012017,2]
[323298622,1713880248586,-500.0,0.00012017,2]
[323298623,1713880248595,-293.82598753,0.00012017,2]
[323298626,1713880248612,-387.78401247,0.00012017,2]
[323298628,1713880248622,-651.12140068,0.00012017,2]
[323298631,1713880248633,-112.65859932,0.00012017,2]
[323298633,1713880248643,-500.0,0.00012017,2]
[323298635,1713880248651,-500.0,0.00012017,2]
[323298637,1713880248660,-500.0,0.00012017,2]
[323298639,1713880248669,-500.0,0.00012017,2]
[323298641,1713880248678,-719.87,0.00012017,2]
[323298663,1713880248922,-500.0,0.00012017,2]
[323298664,1713880248932,-1054.5,0.00012017,2]
[323298665,1713880248941,-891.52,0.00012017,2]
[323298666,1713880248950,-527.79,0.00012017,2]
[323298667,1713880248960,-500.0,0.00012017,2]
[323298668,1713880248968,-500.0,0.00012017,2]
[323298669,1713880248977,-250.39108068,0.00012017,2]
[323298670,1713880249377,-638.07929854,0.00011741,2]
[323298671,1713880249390,-366.46070146,0.00011741,2]
[323298672,1713880249399,-296.90367854,0.00012017,2]
[323298673,1713880249410,-210.19524078,0.00012017,2]
[323298674,1713880249419,-144.01475922,0.00012017,2]
[323298675,1713880249438,-355.98524078,0.00012017,2]
[323298676,1713880249448,-500.0,0.00012017,2]
[323298677,1713880249457,-500.0,0.00012017,2]
[323298678,1713880249468,-500.0,0.00012017,2]
[323298679,1713880249478,-500.0,0.00012017,2]
[323298680,1713880249487,-544.17,0.00012017,2]
[323298681,1713880249496,-500.0,0.00012017,2]
[323298682,1713880249506,-500.0,0.00012017,2]
[323298683,1713880249516,-500.0,0.00012017,2]
[323298684,1713880249525,-500.0,0.00012017,2]
[323298685,1713880249535,-500.0,0.00012017,2]
[323298686,1713880249545,-500.0,0.00012017,2]
[323298687,1713880249554,-500.0,0.00012017,2]
[323298688,1713880249563,-500.0,0.00012017,2]
[323298689,1713880249574,-500.0,0.00012017,2]
[323298690,1713880249583,-500.0,0.00012017,2]
[323298691,1713880249592,-500.0,0.00012017,2]
[323298692,1713880249601,-500.0,0.00012017,2]
[323298693,1713880249609,-500.0,0.00012017,2]
[323298694,1713880249618,-500.0,0.00012017,2]
[323298695,1713880249628,-500.0,0.00012017,2]
[323298696,1713880249637,-500.0,0.00012017,2]
[323298697,1713880249646,-536.49,0.00012017,2]
[323298698,1713880249655,-500.0,0.00012017,2]
[323298699,1713880249664,-1052.32,0.00012017,2]
[323298700,1713880249674,-500.0,0.00012017,2]
[323298701,1713880249683,-500.0,0.00012017,2]
[323298702,1713880249692,-581.41,0.00012017,2]
[323298703,1713880249702,-500.0,0.00012017,2]
[323298704,1713880249711,-506.14,0.00012017,2]
[323298705,1713880249720,-500.0,0.00012017,2]
[323298706,1713880249729,-500.0,0.00012017,2]
[323298707,1713880249739,-500.0,0.00012017,2]
[323298708,1713880249748,-500.0,0.00012017,2]
[323298709,1713880249757,-500.0,0.00012017,2]
[323298710,1713880249766,-500.0,0.00012017,2]
[323298711,1713880249775,-500.0,0.00012017,2]
[323298712,1713880249784,-192.58013069,0.00012017,2]
[323298713,1713880249794,-500.0,0.00012017,2]
[323298714,1713880249804,-586.89,0.00012017,2]
[323298715,1713880249813,-1706.87,0.00012017,2]
[323298716,1713880249823,-500.0,0.00012017,2]
[323298717,1713880249832,-537.63,0.00012017,2]
[323298718,1713880249842,-500.0,0.00012017,2]
[323298719,1713880249850,-500.0,0.00012017,2]
[323298720,1713880249860,-3543.74,0.00012017,2]
[323298721,1713880249869,-651.07,0.00012017,2]
[323298722,1713880249878,-500.0,0.00012017,2]
[323298723,1713880249887,-500.0,0.00012017,2]
[323298724,1713880249896,-1074.26760232,0.00012017,2]
[323298725,1713880249908,-54.10239768,0.00012017,2]
[323298726,1713880249916,-500.0,0.00012017,2]
[323298727,1713880249926,-500.0,0.00012017,2]
[323298728,1713880249935,-500.0,0.00012017,2]
[323298729,1713880249944,-313.03008365,0.00012017,2]
[323298730,1713880249953,-208.68138887,0.00012017,2]
[323298731,1713880249963,-500.0,0.00012017,2]
[323298732,1713880249972,-523.8,0.00012017,2]
[323298733,1713880249981,-3800.79,0.00012017,2]
[323298734,1713880249990,-1095.02,0.00012017,2]
[323298735,1713880249999,-51.02343614,0.00012017,2]
[323298736,1713880250045,-1004.54,0.00012015,2]
[323298737,1713880250054,-448.97656386,0.00012017,2]
[323298738,1713880250063,-370.32742345,0.00012017,2]
[323298739,1713880329005,1100.0,0.000113,2]
[323298742,1713880596457,431.09,9.341e-05,2]
[323298743,1713880699214,536.15,0.00011189,2]
[323298744,1713881050951,40.17666326,0.0001128,2]
[323298745,1713881119847,409.53,9.328e-05,2]
[323298755,1713881218864,357.1,0.00011178,2]
[323298775,1713881432186,-1500.0,0.00011279,2]
[323298776,1713881432195,-115.95333674,0.0001128,2]
[323298777,1713881432204,-607.05,0.00011298,2]
[323298778,1713881432214,-392.95,0.00011302,2]
[323298779,1713881432224,-176.6,0.00011395,2]
[323298780,1713881432233,-409.53,0.00011592,2]
[323298781,1713881432243,-1056.42716507,0.00011641,2]
[323298782,1713881432254,-1609.25000001,0.00011641,2]
[323298783,1713881432272,-466.33962102,0.00011641,2]
[323298784,1713881432292,-693.51236826,0.00011641,2]
[323298785,1713881432303,-641.5619307,0.00011641,2]
[323298786,1713881432321,-11852.48931494,0.00011641,2]
[323298787,1713881432332,-223.51068506,0.0001174,2]
[323298788,1713881432345,-443.36931494,0.0001174,2]
[323298789,1713881432355,-662.14,0.0001174,2]
[323298790,1713881432366,-500.0,0.0001174,2]
[323298791,1713881432375,-577.85,0.0001174,2]
[323298792,1713881432385,-500.0,0.0001174,2]
[323298793,1713881432393,-1050.42,0.0001174,2]
[323298794,1713881432403,-500.0,0.0001174,2]
[323298795,1713881432412,-500.0,0.0001174,2]
[323298796,1713881432422,-500.0,0.0001174,2]
[323298797,1713881432432,-500.0,0.0001174,2]
[323298798,1713881432441,-1187.22,0.0001174,2]
[323298799,1713881432450,-500.0,0.0001174,2]
[323298800,1713881432460,-528.44,0.0001174,2]
[323298801,1713881432469,-760.45,0.0001174,2]
[323298802,1713881432478,-500.0,0.0001174,2]
[323298804,1713881432488,-500.0,0.0001174,2]
[323298806,1713881432499,-734.05,0.0001174,2]
[323298808,1713881432508,-500.0,0.0001174,2]
[323298810,1713881432516,-1036.49,0.0001174,2]
[323298812,1713881432525,-1295.46,0.0001174,2]
[323298814,1713881432534,-565.98,0.0001174,2]
[323298816,1713881432544,-496.13068306,0.0001174,2]
[323298820,1713881432570,-3.86931694,0.0001174,2]
[323298822,1713881432579,-789.45,0.0001174,2]
[323298824,1713881432588,-500.0,0.0001174,2]
[323298825,1713881432598,-538.42,0.0001174,2]
[323298826,1713881432607,-607.61,0.0001174,2]
[323298827,1713881432616,-25.41863083,0.0001174,2]
[323298852,1713881438210,-474.58136917,0.0001174,2]
[323298854,1713881438220,-500.0,0.0001174,2]
[323298856,1713881438229,-500.0,0.0001174,2]
[323298858,1713881438238,-500.0,0.0001174,2]
[323298860,1713881438249,-500.0,0.0001174,2]
[323298862,1713881438258,-500.0,0.0001174,2]
[323298864,1713881438267,-377.1295611,0.0001174,2]
[323298869,1713881438319,-122.8704389,0.0001174,2]
[323298870,1713881438328,-18031.79,0.0001174,2]
[323298871,1713881438337,-500.0,0.0001174,2]
[323298872,1713881438346,-172.07024569,0.0001174,2]
[323299069,1713881440168,-265.34402344,0.0001174,2]
[323299076,1713881440226,-1238.11573087,0.0001174,2]
[323299078,1713881440235,-500.0,0.0001174,2]
[323299081,1713881440246,-500.0,0.0001174,2]
[323299082,1713881440255,-319.71856258,0.0001174,2]
[323299098,1713881440391,-180.28143742,0.0001174,2]
[323299100,1713881440400,-268.2073085,0.0001174,2]
[323299103,1713881440412,-231.7926915,0.0001174,2]
[323299105,1713881440422,-682.4614587,0.0001174,2]
[323299107,1713881440434,-291.1285413,0.0001174,2]
[323299109,1713881440443,-500.0,0.0001174,2]
[323299111,1713881440453,-500.0,0.0001174,2]
[323299113,1713881440462,-500.0,0.0001174,2]
[323299115,1713881440471,-510.52,0.0001174,2]
[323299117,1713881440480,-500.0,0.0001174,2]
[323299119,1713881440490,-850.64,0.0001174,2]
[323299121,1713881440504,-920.78,0.0001174,2]
[323299123,1713881440514,-964.6,0.0001174,2]
[323299125,1713881440523,-997.19,0.0001174,2]
[323299127,1713881440534,-500.0,0.0001174,2]
[323299129,1713881440544,-500.0,0.0001174,2]
[323299131,1713881440553,-500.0,0.0001174,2]
[323299133,1713881440563,-500.0,0.0001174,2]
[323299135,1713881440572,-500.0,0.0001174,2]
[323299137,1713881440581,-500.0,0.0001174,2]
[323299139,1713881440590,-927.86,0.0001174,2]
[323299141,1713881440599,-1714.59,0.0001174,2]
[323299143,1713881440608,-500.0,0.0001174,2]
[323299145,1713881440618,-500.0,0.0001174,2]
[323299147,1713881440626,-818.02,0.0001174,2]
[323299149,1713881440637,-500.0,0.0001174,2]
[323299151,1713881440646,-2482.34,0.0001174,2]
[323299153,1713881440655,-500.0,0.0001174,2]
[323299155,1713881440664,-500.0,0.0001174,2]
[323299157,1713881440673,-758.84,0.0001174,2]
[323299159,1713881440683,-600.11,0.0001174,2]
[323299161,1713881440692,-500.0,0.0001174,2]
[323299163,1713881440701,-500.0,0.0001174,2]
[323299165,1713881440710,-500.0,0.0001174,2]
[323299167,1713881440721,-2819.73,0.0001174,2]
[323299169,1713881440731,-500.0,0.0001174,2]
[323299171,1713881440740,-513.53,0.0001174,2]
[323299173,1713881440757,-500.0,0.0001174,2]
[323299175,1713881440768,-500.0,0.0001174,2]
[323299177,1713881440778,-500.0,0.0001174,2]
[323299179,1713881440787,-8226.17,0.0001174,2]
[323299181,1713881440796,-623.66,0.0001174,2]
[323299183,1713881440805,-500.0,0.0001174,2]
[323299185,1713881440814,-500.0,0.0001174,2]
[323299187,1713881440824,-500.0,0.0001174,2]
[323299189,1713881440834,-4578.03,0.0001174,2]
[323299191,1713881440843,-594.2,0.0001174,2]
[323299193,1713881440854,-500.0,0.0001174,2]
[323299195,1713881440864,-1222.39,0.0001174,2]
[323299198,1713881440874,-1631.22,0.0001174,2]
[323299200,1713881440883,-1351.92,0.0001174,2]
[323299201,1713881440892,-690.72,0.0001174,2]
[323299204,1713881440901,-543.96,0.0001174,2]
[323299206,1713881440910,-1991.2,0.0001174,2]
[323299208,1713881440920,-500.0,0.0001174,2]
[323299210,1713881440929,-566.56,0.0001174,2]
[323299212,1713881440938,-1556.31,0.0001174,2]
[323299214,1713881440947,-787.33,0.0001174,2]
[323299216,1713881440956,-525.36,0.0001174,2]
[323299218,1713881440965,-2005.8,0.0001174,2]
[323299220,1713881440974,-4410.99,0.0001174,2]
[323299222,1713881440983,-861.88,0.0001174,2]
[323299224,1713881440992,-608.66,0.0001174,2]
[323299226,1713881441005,-1010.39,0.0001174,2]
[323299227,1713881441015,-500.0,0.0001174,2]
[323299229,1713881441024,-564.14,0.0001174,2]
[323299231,1713881441033,-887.5,0.0001174,2]
[323299233,1713881441041,-577.41,0.0001174,2]
[323299235,1713881441050,-2165.36,0.0001174,2]
[323299237,1713881441059,-500.0,0.0001174,2]
[323299239,1713881441068,-500.0,0.0001174,2]
[323299242,1713881441077,-500.0,0.0001174,2]
[323299244,1713881441086,-500.0,0.0001174,2]
[323299246,1713881441095,-500.0,0.0001174,2]
[323299247,1713881441104,-500.0,0.0001174,2]
[323299249,1713881441113,-637.33,0.0001174,2]
[323299251,1713881441128,-621.30953414,0.0001174,2]
[323299253,1713881441136,-500.0,0.0001174,2]
[323299255,1713881441145,-1071.26,0.0001174,2]
[323299257,1713881441155,-6002.69,0.0001174,2]
[323299260,1713881441164,-596.78,0.00011741,2]
[323299262,1713881441173,-500.0,0.00011741,2]
[323299264,1713881441182,-500.0,0.00011741,2]
[323299266,1713881441191,-500.0,0.00011741,2]
[323299268,1713881441201,-500.0,0.00011741,2]
[323299269,1713881441210,-500.0,0.00011741,2]
[323299272,1713881441220,-500.0,0.00011741,2]
[323299274,1713881441230,-500.0,0.00011741,2]
[323299276,1713881441240,-500.0,0.00011741,2]
[323299278,1713881441253,-772.48,0.00011741,2]
[323299280,1713881441262,-500.0,0.00011741,2]
[323299282,1713881441271,-500.0,0.00011741,2]
[323299284,1713881441280,-500.0,0.00011741,2]
[323299286,1713881441289,-500.0,0.00011741,2]
[323299288,1713881441298,-500.0,0.00011741,2]
[323299290,1713881441307,-500.0,0.00011741,2]
[323299292,1713881441316,-500.0,0.00011741,2]
[323299294,1713881441325,-500.0,0.00011741,2]
[323299296,1713881441334,-500.0,0.00011741,2]
[323299298,1713881441343,-500.0,0.00011741,2]
[323299300,1713881441352,-500.0,0.00011741,2]
[323299302,1713881441361,-501.37,0.00011741,2]
[323299304,1713881441370,-500.0,0.00011741,2]
[323299306,1713881441379,-500.0,0.00011741,2]
[323299308,1713881441388,-500.0,0.00011741,2]
[323299310,1713881441397,-617.27,0.00011741,2]
[323299312,1713881441406,-500.0,0.00011741,2]
[323299314,1713881441415,-500.0,0.00011741,2]
[323299316,1713881441424,-824.72,0.00011741,2]
[323299322,1713881441676,-500.0,0.00011741,2]
[323299323,1713881441688,-500.0,0.00011741,2]
[323299324,1713881441698,-500.0,0.00011741,2]
[323299325,1713881441708,-500.0,0.00011741,2]
[323299326,1713881441721,-224.7,0.00011741,2]
[323299327,1713881441731,-500.0,0.00011741,2]
[323299328,1713881441741,-500.0,0.00011741,2]
[323299329,1713881441756,-500.0,0.00011741,2]
[323299330,1713881441766,-500.0,0.00011741,2]
[323299331,1713881441775,-500.0,0.00011741,2]
[323299332,1713881441786,-1172.37,0.00011741,2]
[323299333,1713881441796,-500.0,0.00011741,2]
[323299334,1713881441807,-535.55,0.00011741,2]
[323299335,1713881441817,-507.69,0.00011741,2]
[323299336,1713881441826,-500.0,0.00011741,2]
[323299337,1713881441836,-500.0,0.00011741,2]
[323299338,1713881441846,-586.64,0.00011741,2]
[323299339,1713881441857,-500.0,0.00011741,2]
[323299340,1713881441867,-205.19,0.00011741,2]
[323299341,1713881441877,-500.0,0.00011741,2]
[323299342,1713881441887,-500.0,0.00011741,2]
[323299343,1713881441897,-514.38,0.00011741,2]
[323299344,1713881441907,-588.58,0.00011741,2]
[323299345,1713881441917,-372.64,0.00011741,2]
[323299346,1713881441926,-500.0,0.00011741,2]
[323299347,1713881441936,-260.71,0.00011741,2]
[323299348,1713881441945,-500.0,0.00011741,2]
[323299349,1713881441956,-500.0,0.00011741,2]
[323299350,1713881441966,-602.61,0.00011741,2]
[323299351,1713881441976,-500.0,0.00011741,2]
[323299352,1713881441987,-781.53,0.00011741,2]
[323299353,1713881441999,-500.0,0.00011741,2]
[323299354,1713881442009,-500.0,0.00011741,2]
[323299355,1713881442019,-500.0,0.00011741,2]
[323299356,1713881442028,-394.54,0.00011741,2]
[323299357,1713881442038,-323.24,0.00011741,2]
[323299358,1713881442048,-629.19,0.00011741,2]
[323299359,1713881442058,-304.31,0.00011741,2]
[323299360,1713881442068,-310.88,0.00011741,2]
[323299361,1713881442078,-780.47,0.00011741,2]
[323299362,1713881442087,-500.0,0.00011741,2]
[323299363,1713881442097,-500.0,0.00011741,2]
[323299364,1713881442106,-466.53,0.00011741,2]
[323299365,1713881442116,-599.15,0.00011741,2]
[323299366,1713881442127,-500.0,0.00011741,2]
[323299367,1713881442138,-297.82,0.00011741,2]
[323299368,1713881442147,-418.9,0.00011741,2]
[323299369,1713881442158,-500.0,0.00011741,2]
[323299370,1713881442167,-500.0,0.00011741,2]
[323299371,1713881442178,-500.0,0.00011741,2]
[323299372,1713881442188,-578.87,0.00011741,2]
[323299373,1713881442199,-500.0,0.00011741,2]
[323299374,1713881442209,-744.94,0.00011741,2]
[323299375,1713881442220,-500.0,0.00011741,2]
[323299376,1713881442229,-306.54,0.00011741,2]
[323299377,1713881442239,-500.0,0.00011741,2]
[323299378,1713881442253,-723.83,0.00011741,2]
[323299379,1713881442262,-500.0,0.00011741,2]
[323299380,1713881442272,-500.0,0.00011741,2]
[323299381,1713881442282,-500.0,0.00011741,2]
[323299382,1713881442292,-500.0,0.00011741,2]
[323299383,1713881442301,-711.07,0.00011741,2]
[323299384,1713881442311,-500.0,0.00011741,2]
[323299385,1713881442322,-636.84302979,0.00011741,2]
[323299386,1713881442333,-500.0,0.00011741,2]
[323299387,1713881442343,-442.28537935,0.00011741,2]
[323299388,1713881442353,-500.0,0.00011741,2]
[323299389,1713881442363,-271.48536199,0.00011741,2]
[323299390,1713881442373,-500.0,0.00011741,2]
[323299391,1713881442382,-500.0,0.00011741,2]
[323299392,1713881442392,-500.0,0.00011741,2]
[323299393,1713881442402,-346.49948837,0.00011741,2]
[323299394,1713881442413,-500.0,0.00011741,2]
[323299395,1713881442424,-500.0,0.00011741,2]
[323299396,1713881442435,-500.0,0.00011741,2]
[323299397,1713881442445,-500.0,0.00011741,2]
[323299398,1713881442455,-500.0,0.00011741,2]
[323299399,1713881442465,-502.12849887,0.00011741,2]
[323299400,1713881442475,-559.2,0.00011741,2]
[323299401,1713881442486,-500.0,0.00011741,2]
[323299402,1713881442498,-203.37329626,0.00011741,2]
[323299403,1713881442509,-500.0,0.00011741,2]
[323299404,1713881442520,-500.0,0.00011741,2]
[323299405,1713881442530,-500.0,0.00011741,2]
[323299406,1713881442540,-253.22,0.00011741,2]
[323299407,1713881442549,-500.0,0.00011741,2]
[323299408,1713881442558,-500.0,0.00011741,2]
[323299409,1713881442567,-500.0,0.00011741,2]
[323299410,1713881442576,-500.0,0.00011741,2]
[323299411,1713881442586,-170.04,0.00011741,2]
[323299412,1713881442594,-500.0,0.00011741,2]
[323299413,1713881442604,-500.0,0.00011741,2]
[323299414,1713881442613,-500.0,0.00011741,2]
[323299415,1713881442622,-500.78006767,0.00011741,2]
[323299416,1713881442632,-500.0,0.00011741,2]
[323299417,1713881442646,-500.0,0.00011741,2]
[323299418,1713881442658,-500.0,0.00011741,2]
[323299419,1713881442668,-500.0,0.00011741,2]
[323299420,1713881442679,-500.0,0.00011741,2]
[323299421,1713881442689,-500.0,0.00011741,2]
[323299422,1713881442699,-500.0,0.00011741,2]
[323299423,1713881442709,-500.0,0.00011741,2]
[323299424,1713881442721,-569.43066698,0.00011741,2]
[323299425,1713881442731,-500.0,0.00011741,2]
[323299426,1713881442740,-500.0,0.00011741,2]
[323299427,1713881442751,-500.0,0.00011741,2]
[323299428,1713881442760,-500.0,0.00011741,2]
[323299429,1713881442769,-587.80462065,0.00011741,2]
[323299430,1713881442778,-500.0,0.00011741,2]
[323299431,1713881442788,-500.0,0.00011741,2]
[323299432,1713881442797,-500.0,0.00011741,2]
[323299433,1713881442808,-500.0,0.00011741,2]
[323299434,1713881442819,-500.0,0.00011741,2]
[323299435,1713881442828,-500.0,0.00011741,2]
[323299436,1713881442837,-500.0,0.00011741,2]
[323299437,1713881442846,-500.0,0.00011741,2]
[323299438,1713881442856,-500.0,0.00011741,2]
[323299439,1713881442867,-500.0,0.00011741,2]
[323299440,1713881442877,-501.25950545,0.00011741,2]
[323299441,1713881442886,-500.0,0.00011741,2]
[323299442,1713881442895,-500.0,0.00011741,2]
[323299443,1713881442904,-500.0,0.00011741,2]
[323299444,1713881442913,-500.0,0.00011741,2]
[323299445,1713881442922,-578.36,0.00011741,2]
[323299446,1713881442931,-500.0,0.00011741,2]
[323299447,1713881442940,-500.78261249,0.00011741,2]
[323299448,1713881442950,-500.0,0.00011741,2]
[323299449,1713881442959,-314.16449104,0.00011741,2]
[323299450,1713881442969,-500.0,0.00011741,2]
[323299451,1713881442978,-500.0,0.00011741,2]
[323299452,1713881442987,-500.0,0.00011741,2]
[323299453,1713881442998,-500.0,0.00011741,2]
[323299454,1713881443007,-500.0,0.00011741,2]
[323299456,1713881443016,-500.0,0.00011741,2]
[323299458,1713881443025,-428.68126217,0.00011741,2]
[323299460,1713881443035,-562.49,0.00011741,2]
[323299462,1713881443045,-500.0,0.00011741,2]
[323299463,1713881443055,-500.0,0.00011741,2]
[323299465,1713881443064,-500.0,0.00011741,2]
[323299467,1713881443074,-500.0,0.00011741,2]
[323299469,1713881443083,-500.0,0.00011741,2]
[323299471,1713881443092,-500.0,0.00011741,2]
[323299474,1713881443101,-500.0,0.00011741,2]
[323299477,1713881443110,-500.0,0.00011741,2]
[323299480,1713881443120,-501.61960135,0.00011741,2]
[323299483,1713881443129,-614.6,0.00011741,2]
[323299484,1713881443137,-500.0,0.00011741,2]
[323299485,1713881443147,-500.0,0.00011741,2]
[323299486,1713881443157,-776.76,0.00011741,2]
[323299487,1713881443166,-500.0,0.00011741,2]
[323299488,1713881443175,-740.69,0.00011741,2]
[323299489,1713881443184,-500.0,0.00011741,2]
[323299491,1713881443193,-500.0,0.00011741,2]
[323299493,1713881443203,-500.0,0.00011741,2]
[323299495,1713881443212,-500.0,0.00011741,2]
[323299497,1713881443221,-500.0,0.00011741,2]
[323299499,1713881443230,-500.0,0.00011741,2]
[323299500,1713881443239,-500.0,0.00011741,2]
[323299501,1713881443249,-500.0,0.00011741,2]
[323299502,1713881443258,-500.0,0.00011741,2]
[323299503,1713881443267,-500.0,0.00011741,2]
[323299504,1713881443276,-500.0,0.00011741,2]
[323299505,1713881443286,-500.0,0.00011741,2]
[323299506,1713881443295,-500.0,0.00011741,2]
[323299507,1713881443304,-500.0,0.00011741,2]
[323299508,1713881443313,-500.0,0.00011741,2]
[323299509,1713881443322,-500.0,0.00011741,2]
[323299510,1713881443332,-521.9,0.00011741,2]
[323299511,1713881443340,-500.0,0.00011741,2]
[323299512,1713881443349,-500.0,0.00011741,2]
[323299513,1713881443359,-500.0,0.00011741,2]
[323299514,1713881443368,-637.38,0.00011741,2]
[323299515,1713881443377,-500.0,0.00011741,2]
[323299516,1713881443386,-500.0,0.00011741,2]
[323299517,1713881443395,-500.0,0.00011741,2]
[323299518,1713881443404,-500.0,0.00011741,2]
[323299519,1713881443413,-500.0,0.00011741,2]
[323299520,1713881443422,-609.32811182,0.00011741,2]
[323299521,1713881443430,-504.54929726,0.00011741,2]
[323299522,1713881443439,-500.0,0.00011741,2]
[323299523,1713881443449,-500.0,0.00011741,2]
[323299524,1713881443458,-544.33,0.00011741,2]
[323299525,1713881443467,-500.0,0.00011741,2]
[323299526,1713881443476,-500.0,0.00011741,2]
[323299527,1713881443485,-500.0,0.00011741,2]